{"text_format":"1","workbook":"xlsx","n_sheets":11,"sheets":["Uvod","Zadatel","Hlavicka_Rocni","Rocni","Harm_Rocni","Zaměstnanci","Rozp_Zam_Rocni","Rozp_Strukt_Rocni","Rozp_Zdroj_Rocni","Kontrola_Rocni","DATA"],"not_rendered":{"charts":0,"images":3,"macros":1,"external_links":0,"defined_names":7,"comments":7,"pivot_tables":0},"unopened":[],"bounds":{"document_bytes":16777216,"sheet_cells":100000,"rows_first":2000,"rows_last":500,"rows_between":2000,"halvings":0,"cell_chars":16384,"cell_head_chars":4096},"cells_cut":0,"cells_raw":0,"read":"whole","date_system":"1900"}

{"sheet":"Uvod","index":0,"n_rows":52,"n_cols":9,"rows_kept":52,"cut":false,"hidden":false,"merged":[[0,0,0,12],[15,0,15,12],[44,1,44,12],[46,1,46,12],[19,2,19,12],[34,1,34,12],[37,1,37,12],[39,1,39,12],[41,1,41,12],[42,1,42,12],[20,3,20,12]]}
["POMOZTE DĚTEM"]
[]
["Tento formulář Vás provede přípravou rozpočtu NROS o příspěvek z programu Pomozte dětem."]
[]
["Návod:"]
[null,"Tento formulář slouží k podání žádosti"]
[null,"Vyplňte zobrazené listy"]
[null,"Zkontrolujte údaje ve formuláři a formulář vložte jako přílohu k žádosti v Grantovém systému NROS.\n"]
[null,"Pole určená k vyplnění jsou označena světle modrou barvou:",null,null,null,null,null,null,"Pole k vyplnění"]
[null,"V buňkách, které jsou v pravém horním rohu označeny červeným trojúhelníčkem, naleznete návodné komentáře."]
[]
[]
[]
[]
[]
[]
[]
["Typ žádosti:"]
[]
[null,null," 12 měsíční projekt zaměřený na multidisciplinární přístup v přímé péči o děti ohrožené a znevýhodněné. Maximální požadovaná částka je  880 000 Kč. V  příručce jsou definovány cílové skupiny, na které by se projekt měl zaměřit a zároveň musí být splněny podmínky uvedené v Příručce."]
[]
[null,null,"Kombinace Roční - Individuální"]
[null,null,"Vyber typ žádosti"]
[null,null,"Vše vidět"]
[]
[]
["Technická poznámka k formuláři:"]
["Formulář je zpracován v programu MS Excel. Text v rámci buňky lze členit do odstavců pomocí kláves  Alt+Enter. "]
["Pro správné vyplnění formuláře povolte Makra."]
["U jednotlivých textových polí prosím nepřekračujte povolený počet znaků."]
["Kromě pokynů uvedených přímo ve formuláři je nutné respektovat také Příručku k VŘ  - naleznete na www.pomoztedetem.cz"]
[]
["Souhlasy a prohlášení"]
[null,"Souhlas se zveřejněním projektu"]
[null,"Souhlasím s poskytnutím veškerých informací (vyjma osobních dat) týkajících se projektové žádosti, včetně jejích příloh veřejnosti."]
[]
[null,"Souhlas se zpracováním osobních údajů"]
[null,"Souhlasím se zařazením poskytnutých osobních údajů do grantové databáze Nadace rozvoje občanské společnosti a jejich dalším zpracováním Nadací za účelem vyhodnocení žádosti o nadační příspěvek, a to do odvolání mého souhlasu. Veškerá osobní data budou chráněna v souladu s Nařízením Evropského parlamentu a Rady (EU) 2016/679 ze dne 27. 4. 2016 o ochraně fyzických osob v souvislosti se zpracováním osobních údajů a o volném pohybu těchto údajů a o zrušení směrnice 95/46/ES (obecné nařízení o ochraně osobních údajů). NROS byla zaregistrována na Úřadě pro ochranu osobních údajů pod číslem 00000883/001 dne 14. 2. 2001."]
[null,"Souhlas s podmínkami programu"]
[null,"Souhlasím s termíny a podmínkami platnými pro veřejné výběrové řízení Pomozte dětem vyhlášené dne 2.ledna 2020, jež jsou uvedeny v Příručce k veřejnému výběrovému řízení sbírkového projektu Pomozte dětem."]
[null,"Čestné prohlášení o žadateli"]
[null,"Na majetek žádající NNO nebyl prohlášen konkurz, nebylo potvrzené nucené vyrovnání, eventuálně nebyl zamítnut návrh na prohlášení pro nedostatek majetku. Proti žádající NNO není veden výkon rozhodnutí, není v úpadku nebo v likvidaci dle zákona č. 182/2006 Sb., o úpadku a způsobech jeho řešení (insolvenční zákon)."]
[null,"Žádající NNO má splněné veškeré závazky související s úhradou příspěvku zdravotního pojištění, sociálního zabezpečení a daňovými odvody vyplývajícími z právních předpisů."]
[null,"Čestné prohlášení o projektu"]
[null,"Prohlašuji, že všechny informace poskytnuté v projektové žádosti jsou pravdivé."]
[null,"Prohlášení k přílohám"]
[null,"Poskytnutím materiálů  udělujete souhlas s využitím příběhů, fotografií/videí a loga pro potřeby kampaně Pomozte dětem"]
[null,"a prezentaci podpořených organizací a dětí v rámci  sbírky. Texty příběhů mohou být upraveny dle potřeb Pomozte dětem."]
[]
[null,"Prohlašuji, že budu při zpracování této žádosti postupovat v souladu s Nařízením Evropského parlamentu a Rady (EU) 2016/679 "]
[null,"ze dne 27. 4. 2016 o ochraně fyzických osob v souvislosti se zpracováním osobních údajů a o volném pohybu těchto údajů "]
[null,"a o zrušení směrnice 95/46/ES (obecné nařízení o ochraně osobních údajů)."]

{"sheet":"Zadatel","index":1,"n_rows":66,"n_cols":19,"rows_kept":66,"cut":false,"hidden":true,"merged":[[61,11,61,12],[54,4,54,5],[55,4,55,5],[56,4,56,5],[57,4,57,5],[58,4,58,5],[54,10,54,11],[55,10,55,11],[56,10,56,11],[57,10,57,11],[58,10,58,11],[59,4,59,5],[59,10,59,11],[53,10,53,11],[49,4,49,5],[50,4,50,5],[51,4,51,5],[52,4,52,5],[53,4,53,5],[40,4,40,12],[49,10,49,11],[50,10,50,11],[51,10,51,11],[52,10,52,11],[44,4,44,6],[44,7,44,9],[44,10,44,12],[43,4,43,6],[43,10,43,12],[43,7,43,9],[45,4,45,12],[24,4,24,12],[25,4,25,12],[27,4,27,12],[30,4,30,12],[35,4,35,12],[26,4,26,12],[25,1,25,3],[39,4,39,12],[31,4,31,12],[32,4,32,12],[33,4,33,12],[36,4,36,12],[37,4,37,12],[38,4,38,12],[0,0,0,12],[2,0,2,12],[5,4,5,12],[6,4,6,12],[9,4,9,12],[7,4,7,12],[23,4,23,12],[8,4,8,12],[16,4,16,12],[17,4,17,12],[11,4,11,12],[13,4,13,12],[12,4,12,12],[18,4,18,12],[19,4,19,12],[21,4,21,12],[22,4,22,12]]}
["POMOZTE DĚTEM"]
[]
["Údaje o žadateli"]
[]
["Identifikace organizace"]
["1.","Název organizace"]
["2.","Právní forma"]
["3.","IČ"]
["4.","Bankovní účet",null,null,null,null,null,null,null,null,null,null,null,"VYMAZAT!"]
["4.","Oddíl vložka a datum zápisu"]
[]
["5.","Statutární orgán"]
["6.","Web"]
["7.","Odkaz na výroční zprávu"]
["Aktivity organizace"]
["1.","Hlavní aktivity organizace"]
[null,null,null,"a,"]
[null,null,null,"b,"]
[null,null,null,"c,",null,null,null,null,null,null,null,null,null,null,null,null,null,null,"1.       Děti se smyslovým postižením (zrakové, sluchové, hluchoslepota)"]
[null,null,null,"d,",null,null,null,null,null,null,null,null,null,null,null,null,null,null,"2.       Děti s tělesným postižením (DMO, omezení hybnosti, vrozené poruchy a onemocnění, úrazy)"]
["2.","Registrované služby",null,null,null,null,null,null,null,null,null,null,null,null,null,null,null,null,"3.       Děti s poruchami psychického vývoje (specifické poruchy řeči a jazyka, školních dovedností, chování, ADHD, pervazivní vývojové poruchy (autismus))"]
[null,null,null,"a,",null,null,null,null,null,null,null,null,null,null,null,null,null,null,"4.       Děti s mentálním postižením"]
[null,null,null,"b,",null,null,null,null,null,null,null,null,null,null,null,null,null,null,"5.       Děti s kombinovaným postižením"]
[null,null,null,"c,",null,null,null,null,null,null,null,null,null,null,null,null,null,null,"6.       Děti dlouhodobě nemocné"]
[null,null,null,"d,",null,null,null,null,null,null,null,null,null,null,null,null,null,null,"7.       Děti s jiným specifickým zdravotním znevýhodněním"]
["3.","Pověření dle zák. 359/99 Sb.",null,null,null,null,null,null,null,null,null,null,null,null,null,null,null,null,"8.       Děti žijící mimo vlastní rodinu (pěstounská péče, adopce, děti z dětských domovů)"]
["4.","Cilová skupina",null,null,null,null,null,null,null,null,null,null,null,null,null,null,null,null,"9.       Děti žijící v sociálně slabých rodinách"]
[null,null,"pokud jiné tak",null,null,null,null,null,null,null,null,null,null,null,null,null,null,null,"10.     Děti žijící v dysfunkčních rodinách (alkoholismus, drogy, domácí násilí, psychická zátěž a nemoci)"]
["Kontaktní údaje",null,null,null,null,null,null,null,null,null,null,null,null,null,null,null,null,null,"11.     Děti znevýhodněné "]
["1.","Adresa sídla",null,null,null,null,null,null,null,null,null,null,null,null,null,null,null,null,"12.     Děti týrané, zneužívané, zanedbávané   "]
[null,null,"Ulice",null,null,null,null,null,null,null,null,null,null,null,null,null,null,null,"13.     Děti ohrožené závislostmi, agresivitou, šikanou, kyberšikanou a jiným rizikovým chováním"]
[null,null,"Číslo popisné/orientační",null,null,null,null,null,null,null,null,null,null,null,null,null,null,null,"14.       Jiné"]
[null,null,"PSČ"]
[null,null,"Město"]
["2.","Poštovní adresa"]
[null,null,"Ulice"]
[null,null,"Číslo popisné/orientační"]
[null,null,"PSČ"]
[null,null,"Město"]
["3.","Telefon"]
["4.","E-mail"]
[]
["Kapacita organizace"]
[null,null,null,null,"Zaměstnanci na HPP",null,null,"Zaměstnanci na DPP",null,null,"Zaměstnanci na DPČ"]
["1.","Počet zaměstnanců org."]
["2.","Počet dobrovolníků",null,null,null,null,null,null,null,null,null,null,null,null,null,null,"ANO"]
[null,null,null,null,null,null,null,null,null,null,null,null,null,null,null,null,"NE"]
["Uveďte kolikrát jste v minulosti žádali o finanční podporu v projektu Pomozte dětem a kolikrát jste byli podpořeni a v jaké výši.",null,null,null,null,null,null,null,null,null,null,null,null,null,null,null,"NEVÍM"]
[]
[null,null,null,"Žádáno","Podpora v Kč",null,null,null,null,"Žádáno","Podpora v Kč"]
[null,null,"1. ročník",null,null,null,null,"11. ročník"]
[null,null,"2. ročník",null,null,null,null,"12. ročník"]
[null,null,"3. ročník",null,null,null,null,"13. ročník"]
[null,null,"4. ročník",null,null,null,null,"14. ročník"]
[null,null,"5. ročník",null,null,null,null,"15. ročník"]
[null,null,"6. ročník",null,null,null,null,"16. ročník"]
[null,null,"7. ročník",null,null,null,null,"17. ročník"]
[null,null,"8. ročník",null,null,null,null,"18. ročník"]
[null,null,"9. ročník",null,null,null,null,"19. ročník"]
[null,null,"10. ročník"]
[null,null,"celkově žádáno:",null,null,"krát",null,"celkově podpořeno:",null,null,null,"krát"]
[null,null,null,null,null,null,null,"Celková částka podpory za 19. ročníků",null,null,null,{"$f":"SUM(E51:F60,K51:L60)","v":0}]
[]
[null,"Zúčastnil se zástupce vaší organizace letošního semináře pro žadatele z veřejné sbírky Pomozte dětem?"]
[null,"Uvažujete o účasti v soutěž neziskovaka roku? (www.neziskovkaroku.cz)"]
[null,null,null,null,null,null,null,null,null,null,null,"Kontrolní součet:",{"$f":"Checksum(E6:M40)+Checksum(E45:M46)+Checksum(D51:F59)+Checksum(J51:L59)","v":0}]

{"sheet":"Hlavicka_Rocni","index":2,"n_rows":37,"n_cols":13,"rows_kept":37,"cut":false,"hidden":true,"merged":[[25,1,25,12],[26,1,26,12],[28,1,28,12],[36,10,36,12],[0,0,0,12],[4,10,4,12],[18,1,18,12],[21,1,21,12],[23,1,23,12],[5,10,5,12],[5,8,5,9],[30,1,30,12]]}
["POMOZTE DĚTEM"]
[null,null,null,null,null,null,null,null,null,null,null,null,"20. ročník"]
["LIST NEVYPLŇOVAT!",null,null,null,null,null,null,null,null,"Druh projektu:",null,null,"Roční"]
[]
[null,null,null,null,null,null,null,null,null,"Číslo projektu NROS:"]
[null,null,null,null,null,null,null,null,"Unikátní kód:",null,{"$f":"Zadatel!M66+Rocni!M112+Harm_Rocni!R15+Zaměstnanci!N171","v":257923}]
["1.","Název organizace",null,null,{"$f":"Zadatel!E6","v":0}]
["2.","IČ",null,null,{"$f":"Zadatel!E8","v":0}]
["3.","Název projektu",null,null,{"$f":"Rocni!B5","v":0}]
[]
["4.","Kontaktní osoba"]
[null,null,"Jméno osoby",null,{"$f":"Rocni!E15","v":0}]
[null,null,"Telefon",null,{"$f":"Rocni!E17","v":0}]
[null,null,"E-mail",null,{"$f":"Rocni!E18","v":0}]
["5.","Web",null,null,{"$f":"Zadatel!E13","v":0}]
[]
["Souhlasy a prohlášení"]
[null,"Souhlas se zveřejněním projektu"]
[null,"Souhlasím s poskytnutím veškerých informací (vyjma osobních dat) týkajících se projektové žádosti, včetně jejích příloh veřejnosti."]
[]
[null,"Souhlas se zpracováním osobních údajů"]
[null,"Souhlasím se zařazením poskytnutých osobních údajů do grantové databáze Nadace rozvoje občanské společnosti a jejich dalším zpracováním Nadací za účelem vyhodnocení žádosti o nadační příspěvek, a to do odvolání mého souhlasu. Veškerá osobní data budou chráněna v souladu se zněním zákona č. 101/2000 Sb. o ochraně osobních údajů. NROS byla zaregistrována na Úřadě pro ochranu osobních údajů pod číslem 00000883/001 dne 14. 2. 2001."]
[null,"Souhlas s podmínkami programu"]
[null,"Souhlasím s termíny a podmínkami platnými pro veřejné výběrové řízení Pomozte dětem vyhlášené dne 1. září 2017, jež jsou uvedeny v Příručce k veřejnému výběrovému řízení 20. ročníku sbírkového projektu Pomozte dětem."]
[null,"Čestné prohlášení o žadateli"]
[null,"Na majetek žádající NNO nebyl prohlášen konkurz, nebylo potvrzené nucené vyrovnání, eventuálně nebyl zamítnut návrh na prohlášení pro nedostatek majetku. Proti žádající NNO není veden výkon rozhodnutí, není v úpadku nebo v likvidaci dle zákona č. 182/2006 Sb., o úpadku a způsobech jeho řešení (insolvenční zákon)."]
[null,"Žádající NNO má splněné veškeré závazky související s úhradou příspěvku zdravotního pojištění, sociálního zabezpečení a daňovými odvody vyplývajícími z právních předpisů."]
[null,"Čestné prohlášení o projektu"]
[null,"Prohlašuji, že všechny informace poskytnuté v projektové žádosti jsou pravdivé."]
[null,"Prohlášení k přílohám"]
[null,"Poskytnutím materiálů  udělujete souhlas s využitím příběhů, fotografií/videí a loga pro potřeby kampaně Pomozte dětem"]
[null,"a prezentaci podpořených organizací a dětí v rámci  sbírky. Texty příběhů mohou být upraveny dle potřeb Pomozte dětem."]
[]
[]
[]
[]
[null,null,null,null,null,null,null,null,null,null,{"$f":"Zadatel!E12","v":0}]

{"sheet":"Rocni","index":3,"n_rows":112,"n_cols":20,"rows_kept":112,"cut":false,"hidden":true,"merged":[[102,1,110,6],[38,2,38,3],[38,4,38,12],[39,4,39,12],[8,1,8,12],[12,1,12,12],[35,1,35,12],[33,4,33,12],[20,4,20,12],[29,4,29,12],[30,4,30,12],[32,4,32,12],[39,2,49,3],[39,1,49,1],[45,4,45,7],[43,4,43,12],[44,4,44,5],[44,8,44,10],[44,11,44,12],[44,6,44,7],[40,4,40,12],[48,4,48,12],[47,4,47,12],[41,4,41,12],[0,0,0,12],[4,1,4,12],[6,1,6,12],[10,1,10,12],[19,4,19,12],[14,4,14,12],[15,4,15,12],[16,4,16,12],[17,4,17,12],[42,4,42,12],[51,1,61,1],[51,2,61,3],[51,4,51,12],[52,4,52,12],[53,4,53,12],[54,4,54,12],[55,4,55,12],[56,4,56,5],[56,6,56,7],[56,8,56,10],[56,11,56,12],[57,4,57,7],[58,4,58,12],[61,4,61,12],[50,2,50,3],[50,4,50,12],[46,4,46,12],[49,4,49,12],[60,4,60,12],[59,4,59,12],[62,2,62,3],[62,4,62,12],[63,1,73,1],[63,2,73,3],[63,4,63,12],[64,4,64,12],[65,4,65,12],[66,4,66,12],[67,4,67,12],[68,4,68,5],[68,6,68,7],[68,8,68,10],[68,11,68,12],[69,4,69,7],[72,4,72,12],[73,4,73,12],[71,4,71,12],[70,4,70,12],[74,2,74,3],[74,4,74,12],[75,1,85,1],[75,2,85,3],[75,4,75,12],[76,4,76,12],[77,4,77,12],[78,4,78,12],[79,4,79,12],[80,4,80,5],[80,6,80,7],[80,8,80,10],[80,11,80,12],[81,4,81,7],[82,4,82,12],[85,4,85,12],[83,4,83,12],[84,4,84,12],[99,0,99,12],[101,0,110,0],[86,2,86,3],[86,4,86,12],[87,1,97,1],[87,2,97,3],[87,4,87,12],[88,4,88,12],[89,4,89,12],[90,4,90,12],[91,4,91,12],[92,4,92,5],[92,6,92,7],[92,8,92,10],[92,11,92,12],[93,4,93,7],[94,4,94,12],[97,4,97,12],[100,0,100,3],[96,4,96,12],[95,4,95,12],[101,1,101,6],[101,7,101,12],[102,7,110,12]]}
["POMOZTE DĚTEM"]
[null,null,null,null,null,null,null,null,null,null,null,"Roční projekt"]
["Identifikace projektu"]
["1.","Název projektu",null,null,null,null,null,null,null,null,null,"Počet znaků:",{"$f":"40-LEN(B5)","v":40}]
[]
["2.","Anotace projektu",null,null,null,null,null,null,null,null,null,"Počet znaků:",{"$f":"500-LEN(B7)","v":500}]
[]
["3.","Popis výchozí situace",null,null,null,null,null,null,null,null,null,"Počet znaků:",{"$f":"500-LEN(B9)","v":500}]
[]
[4,"Cíl projektu",null,null,null,null,null,null,null,null,null,"Počet znaků:",{"$f":"500-LEN(B11)","v":500}]
[]
["5.","Zkušenosti organizace relevantní pro projekt",null,null,null,null,null,null,null,null,null,"Počet znaků:",{"$f":"500-LEN(B13)","v":500}]
[null,null,null,null,null,null,null,null,null,null,null,null,null,null,"CZ 01 – Praha"]
["6.","Kontaktní osoba projektu",null,null,null,null,null,null,null,null,null,null,null,null,"CZ 02 – Střední Čechy"]
[null,null,"Jméno osoby",null,null,null,null,null,null,null,null,null,null,null,"CZ 03 - Jihozápad (Jihočeský, Plzeňský kraj)"]
[null,null,"Pracovní pozice",null,null,null,null,null,null,null,null,null,null,null,"CZ 04 – Severozápad (Ústecký, Karlovarský kraj)"]
[null,null,"Telefon",null,null,null,null,null,null,null,null,null,null,null,"CZ 05 - Severovýchod (Liberecký, Královehradecký, Pardubický kraj)"]
[null,null,"E-mail",null,null,null,null,null,null,null,null,null,null,null,"CZ 06 - Jihovýchod (Vysočina, Jihomoravský kraj)"]
["Místo realizace",null,null,null,null,null,null,null,null,null,null,null,null,null,"CZ 07 - Střední Morava (Zlínský, Olomoucký kraj)"]
["1.","Region realizace (NUTSII)",null,null,null,null,null,null,null,null,null,null,null,null,"CZ 08 - Moravskoslezsko (Moravskoslezský kraj)"]
["2.","Místo realizace (obec)"]
[]
["Rozpočet"]
["1.","Celkové náklady",null,null,{"$f":"Rozp_Strukt_Rocni!C98","v":0},"Kč"]
["2.","Požadovaná částka",null,null,{"$f":"Rozp_Strukt_Rocni!F98","v":0},"Kč"]
["Identifikace cílové skupiny"]
["1.","Počet dětí",null,"Věk","0-5","6-10","11-14","15-18","Celkem"]
[null,null,null,"Počet",null,null,null,null,{"$f":"SUM(E28:H28)","v":0}]
[]
["2.","Čím jsou děti ohrožené",null,null,null,null,null,null,null,null,null,null,null,null,"1.       Děti se smyslovým postižením (zrakové, sluchové, hluchoslepota)","1.       Sociální poradenství"]
[null,null,"pokud jiné tak",null,null,null,null,null,null,null,null,null,null,null,"2.       Děti s tělesným postižením (DMO, omezení hybnosti, vrozené poruchy a onemocnění, úrazy)","2.       Osobní asistence"]
[null,null,null,null,null,null,null,null,null,null,null,null,null,null,"3.       Děti s poruchami psychického vývoje (specifické poruchy řeči a jazyka, školních dovedností, chování, ADHD, pervazivní vývojové poruchy (autismus))","3.       Služby rané péče"]
["3.","Převažující oblast činnosti",null,null,null,null,null,null,null,null,null,null,null,null,"4.       Děti s mentálním postižením","4.       Odlehčovací služby"]
[null,null,"pokud jiné tak",null,null,null,null,null,null,null,null,null,null,null,"5.       Děti s kombinovaným postižením","5.       Paliativní péče"]
["4.","Charakteristika dětí",null,null,null,null,null,null,null,null,null,"Počet znaků:",{"$f":"500-LEN(B36)","v":500},null,"6.       Děti dlouhodobě nemocné","6.       Azylové domy"]
[null,null,null,null,null,null,null,null,null,null,null,null,null,null,"7.       Děti s jiným specifickým zdravotním znevýhodněním","7.       Telefonická krizová intervence"]
[null,null,null,null,null,null,null,null,null,null,null,null,null,null,"8.       Děti žijící mimo vlastní rodinu (pěstounská péče, adopce, děti z dětských domovů)","8.       Krizová pomoc"]
["Popis aktivit projektu",null,null,null,null,null,null,null,null,null,null,null,null,null,"9.       Děti žijící v sociálně slabých rodinách","9.       Nízkoprahová zařízení pro děti a mládež"]
["Počet znaků","Číslo aktivity","Název aktivity",null,"Popis aktivity č.1",null,null,null,null,null,null,null,null,null,"10.     Děti žijící v dysfunkčních rodinách (alkoholismus, drogy, domácí násilí, psychická zátěž a nemoci)","10.    Sociálně aktivizační služby pro rodiny s dětmi"]
[{"$f":"950-LEN(E40)","v":950},1,null,null,null,null,null,null,null,null,null,null,null,null,"11.     Děti znevýhodněné ","11. Terénní programy",null,null,null,"ano"]
[null,null,null,null,"Výstup/ukazatel k aktivitě č.1",null,null,null,null,null,null,null,null,null,"12.     Děti týrané, zneužívané, zanedbávané   ","12.   Stacionáře denní a týdenní",null,null,null,"ne"]
[null,null,null,null,null,null,null,null,null,null,null,null,null,null,"13.     Děti ohrožené závislostmi, agresivitou, šikanou, kyberšikanou a jiným rizikovým chováním","13.   Prevence"]
[null,null,null,null,"Způsob ověření aktivity č.1",null,null,null,null,null,null,null,null,null,"14.       Jiné","14.  Vzdělávací (doučování, asistenti ve školách)"]
[null,null,null,null,null,null,null,null,null,null,null,null,null,null,null,"15.  Rehabilitační"]
[null,null,null,null,"počet kusů/osob/aj.",null,null,null,"celková částka za aktivitu",null,null,null,null,null,null,"16.  Právní"]
[null,null,null,null,"Spoluúčast cílové skupiny na aktivitě č.1",null,null,null,null,null,null,null,null,null,null,"17.  Psychoterapie"]
[null,null,null,null,"Specifikujte, na které aktivity a kolik si klienti připlácí",null,null,null,null,null,null,null,null,null,null,"18.  Sanace rodiny"]
[null,null,null,null,null,null,null,null,null,null,null,null,null,null,null,"19.  Rodinné poradenství"]
[null,null,null,null,"Jak aktivizujete cílovou skupinu k této aktivitě?",null,null,null,null,null,null,null,null,null,null,"20.  Terapie (expresivní terapie a jiné)"]
[null,null,null,null,null,null,null,null,null,null,null,null,null,null,null,"21.  Animoterapie"]
["Počet znaků","Číslo aktivity","Název aktivity",null,"Popis aktivity č.2",null,null,null,null,null,null,null,null,null,null,"22.   Jiné"]
[{"$f":"950-LEN(E52)","v":950},2]
[null,null,null,null,"Výstup/ukazatel k aktivitě č.2"]
[]
[null,null,null,null,"Způsob ověření aktivity č.2"]
[]
[null,null,null,null,"počet kusů/osob/aj.",null,null,null,"celková částka za aktivitu"]
[null,null,null,null,"Spoluúčast cílové skupiny na aktivitě č.2"]
[null,null,null,null,"Specifikujte, na které aktitivy a kolik si klienti připlácí"]
[]
[null,null,null,null,"Jak aktivizujete cílovou skupinu k této aktivitě?"]
[]
["Počet znaků","Číslo aktivity","Název aktivity",null,"Popis aktivity č.3"]
[{"$f":"950-LEN(E64)","v":950},3]
[null,null,null,null,"Výstup/ukazatel k aktivitě č.3"]
[]
[null,null,null,null,"Způsob ověření aktivity č.3"]
[]
[null,null,null,null,"počet kusů/osob/aj.",null,null,null,"celková částka za aktivitu"]
[null,null,null,null,"Spoluúčast cílové skupiny na aktivitě č.3"]
[null,null,null,null,"Specifikujte, na které aktivity a kolik si klienti připlácí"]
[]
[null,null,null,null,"Jak aktivizujete cílovou skupinu k této aktivitě?"]
[]
["Počet znaků","Číslo aktivity","Název aktivity",null,"Popis aktivity č.4"]
[{"$f":"950-LEN(E76)","v":950},4]
[null,null,null,null,"Výstup/ukazatel k aktivitě č.4"]
[]
[null,null,null,null,"Způsob ověření aktivity č.4"]
[]
[null,null,null,null,"počet kusů/osob/aj.",null,null,null,"celková částka za aktivitu"]
[null,null,null,null,"Spoluúčast cílové skupiny na aktivitě č.4"]
[null,null,null,null,"Specifikujte, na které aktivity a kolik si klienti připlácí"]
[]
[null,null,null,null,"Jak aktivizujete cílovou skupinu k této aktivitě?"]
[]
["Počet znaků","Číslo aktivity","Název aktivity",null,"Popis aktivity č.5"]
[{"$f":"950-LEN(E88)","v":950},5]
[null,null,null,null,"Výstup/ukazatel k aktivitě č.5"]
[]
[null,null,null,null,"Způsob ověření aktivity č.5"]
[]
[null,null,null,null,"počet kusů/osob/aj.",null,null,null,"celková částka za aktivitu"]
[null,null,null,null,"Spoluúčast cílové skupiny na aktivitě č.5"]
[null,null,null,null,"Specifikujte, na které aktivity a kolik si klienti připlácí"]
[]
[null,null,null,null,"Jak aktivizujete cílovou skupinu k této aktivitě?"]
[]
[]
["Rizika Projektu"]
["1. Jaká jsou rizika daného projektu?"]
[{"$f":"600-LEN(B102)","v":585},"Rizika projektu",null,null,null,null,null,"Předcházení daných rizik"]
[]
[]
[]
[]
[]
[]
[]
[]
[]
[null,null,null,null,null,null,null,null,null,null,null,"Kontrolní součet:",{"$f":"Checksum(B5)+Checksum(B7)+Checksum(B9)+Checksum(B11)+Checksum(B13)+Checksum(E15:M18)+Checksum(E20:M21)+Checksum(E28:H28)+Checksum(D30:M31)+Checksum(D33:M34)+Checksum(B36)+Checksum(C40)+Checksum(E40)+Checksum(E42)+Checksum(E44)+Checksum(E48)+Checksum(E50)+Checksum(C52)+Checksum(E52)+Checksum(E54)+Checksum(E56)+Checksum(E60)+Checksum(E62)+Checksum(C64)+Checksum(E64)+Checksum(E66)+Checksum(E68)+Checksum(E72)+Checksum(E74)+Checksum(C76)+Checksum(E76)+Checksum(E78)+Checksum(E80)+Checksum(E84)+Checksum(E86)+Checksum(C88)+Checksum(E88)+Checksum(E90)+Checksum(E92)+Checksum(E96)+Checksum(E98)+Checksum(B103)+Checksum(H103)","v":0}]

{"sheet":"Harm_Rocni","index":4,"n_rows":15,"n_cols":18,"rows_kept":15,"cut":false,"hidden":true,"merged":[[0,0,0,17],[13,1,13,17]]}
["POMOZTE DĚTEM"]
[null,null,null,null,null,null,null,null,"Roční projekt",null,null,null,null,null,null,null,null,"20. ročník"]
["Název projektu:",null,{"$f":"Rocni!B5","v":0},null,null,null,null,null,null,null,null,null,null,null,null,null,null,{"$f":"Hlavicka_Rocni!K5","v":0}]
["Organizace:",null,{"$f":"Zadatel!E6","v":0}]
[null,null,null,"Delete",null,"Smazat",null,null,"P","Příprava aktivity",null,null,null,"R","Realizace aktivity"]
["Harmonogram projektu"]
[null,"Číslo aktivity","Název aktivity","2018-07-01","2018-08-01","2018-09-01","2018-10-01","2018-11-01","2018-12-01","2019-01-01","2019-02-01","2019-03-01","2019-04-01","2019-05-01","2019-06-01"]
[null,1,{"$f":"Rocni!C40","v":0}]
[null,{"$f":"B8+1","v":2},{"$f":"Rocni!C52","v":0}]
[null,{"$f":"B9+1","v":3},{"$f":"Rocni!C64","v":0}]
[null,4,{"$f":"Rocni!C76","v":0}]
[null,5,{"$f":"Rocni!C88","v":0}]
[]
[null,"Aktivity projektu zařaďte do harmonogramu projektu. Harmonogram musí obsahovat především dobu přípravy a trvání jednotlivých činností, které budou prováděny za účelem dosažení cíle projektu. Klikem na buňku se Vám nabídne možnost P - příprava aktivity nebo R - realizace aktivity. Pokud chcete vyplněné pole opravit/změnit použijte Delete. Jedná se roční projekt , harmonogram by proto měl být kontinuální, tzn. probíhat po celý rok)."]
[null,null,null,null,null,null,null,null,null,null,null,null,null,"Kontrolní součet:",null,null,null,{"$f":"Checksum(D8:O12)","v":0}]

{"sheet":"Zaměstnanci","index":5,"n_rows":171,"n_cols":19,"rows_kept":171,"cut":false,"hidden":false,"merged":[[160,1,160,3],[160,4,160,6],[160,8,160,10],[160,11,160,13],[168,1,168,3],[168,4,168,6],[168,8,168,10],[168,11,168,13],[136,1,136,3],[136,4,136,6],[136,8,136,10],[136,11,136,13],[144,1,144,3],[144,4,144,6],[144,8,144,10],[144,11,144,13],[152,1,152,3],[152,4,152,6],[152,8,152,10],[152,11,152,13],[167,1,167,3],[167,4,167,6],[167,8,167,10],[167,11,167,13],[85,1,85,3],[85,4,85,6],[85,8,85,10],[85,11,85,13],[103,1,103,3],[103,4,103,6],[103,8,103,10],[103,11,103,13],[111,1,111,3],[111,4,111,6],[111,8,111,10],[111,11,111,13],[110,11,110,13],[105,1,105,3],[105,4,105,6],[105,8,105,10],[105,11,105,13],[106,1,106,3],[106,4,106,6],[106,8,106,10],[106,11,106,13],[107,1,107,3],[107,4,107,6],[107,8,107,10],[35,1,35,3],[35,4,35,6],[35,8,35,10],[35,11,35,13],[43,1,43,3],[43,4,43,6],[43,8,43,10],[43,11,43,13],[53,1,53,3],[53,4,53,6],[53,8,53,10],[53,11,53,13],[40,8,40,10],[40,11,40,13],[41,8,41,10],[41,11,41,13],[50,8,50,10],[50,11,50,13],[48,8,48,10],[48,11,48,13],[44,8,44,10],[44,11,44,13],[47,8,47,10],[47,11,47,13],[11,1,11,3],[11,4,11,6],[11,8,11,10],[11,11,11,13],[19,1,19,3],[19,4,19,6],[27,1,27,3],[27,4,27,6],[27,8,27,10],[27,11,27,13],[25,1,25,3],[25,4,25,6],[26,1,26,3],[26,4,26,6],[26,8,26,10],[26,11,26,13],[0,0,0,13],[1,0,2,13],[3,0,3,13],[113,0,120,0],[121,0,128,0],[130,0,137,0],[138,0,145,0],[146,0,153,0],[154,0,161,0],[113,7,120,7],[121,7,128,7],[130,7,137,7],[138,7,145,7],[146,7,153,7],[154,7,161,7],[71,0,78,0],[71,7,78,7],[79,0,86,0],[79,7,86,7],[89,0,96,0],[89,7,96,7],[97,0,104,0],[97,7,104,7],[105,0,112,0],[169,1,169,3],[169,4,169,6],[169,8,169,10],[169,11,169,13],[164,11,164,13],[165,1,165,3],[165,4,165,6],[165,8,165,10],[165,11,165,13],[166,1,166,3],[166,4,166,6],[166,8,166,10],[166,11,166,13],[161,11,161,13],[162,11,162,13],[163,11,163,13],[157,11,157,13],[158,8,158,10],[162,0,169,0],[5,0,12,0],[5,7,12,7],[13,7,20,7],[21,0,28,0],[21,7,28,7],[29,0,36,0],[29,7,36,7],[37,0,44,0],[37,7,44,7],[5,4,5,6],[13,4,13,6],[23,1,23,3],[23,4,23,6],[24,1,24,3],[24,4,24,6],[28,1,28,3],[28,4,28,6],[29,1,29,3],[47,0,54,0],[47,7,54,7],[55,0,62,0],[55,7,62,7],[48,1,48,3],[48,4,48,6],[44,1,44,3],[44,4,44,6],[47,1,47,3],[47,4,47,6],[51,1,51,3],[51,4,51,6],[56,1,56,3],[56,4,56,6],[60,1,60,3],[60,4,60,6],[61,1,61,3],[61,4,61,6],[50,1,50,3],[50,4,50,6],[55,1,55,3],[55,4,55,6],[63,0,70,0],[63,7,70,7],[164,1,164,3],[164,4,164,6],[164,8,164,10],[162,7,169,7],[161,1,161,3],[161,4,161,6],[161,8,161,10],[162,1,162,3],[162,4,162,6],[162,8,162,10],[163,1,163,3],[163,4,163,6],[163,8,163,10],[157,1,157,3],[157,4,157,6],[157,8,157,10],[158,1,158,3],[158,4,158,6],[150,1,150,3],[150,4,150,6],[150,8,150,10],[147,1,147,3],[158,11,158,13],[159,1,159,3],[159,4,159,6],[159,8,159,10],[159,11,159,13],[154,1,154,3],[154,4,154,6],[154,8,154,10],[154,11,154,13],[155,1,155,3],[155,4,155,6],[155,8,155,10],[155,11,155,13],[156,1,156,3],[156,4,156,6],[156,8,156,10],[156,11,156,13],[150,11,150,13],[151,1,151,3],[151,4,151,6],[151,8,151,10],[151,11,151,13],[153,1,153,3],[153,4,153,6],[153,8,153,10],[153,11,153,13],[147,4,147,6],[147,8,147,10],[147,11,147,13],[148,1,148,3],[148,4,148,6],[148,8,148,10],[148,11,148,13],[149,1,149,3],[149,4,149,6],[149,8,149,10],[149,11,149,13],[143,1,143,3],[143,4,143,6],[143,8,143,10],[143,11,143,13],[145,1,145,3],[145,4,145,6],[145,8,145,10],[145,11,145,13],[146,1,146,3],[146,4,146,6],[146,8,146,10],[146,11,146,13],[140,1,140,3],[140,4,140,6],[140,8,140,10],[140,11,140,13],[141,1,141,3],[141,4,141,6],[141,8,141,10],[141,11,141,13],[142,1,142,3],[142,4,142,6],[142,8,142,10],[142,11,142,13],[137,1,137,3],[137,4,137,6],[137,8,137,10],[137,11,137,13],[138,1,138,3],[138,4,138,6],[138,8,138,10],[138,11,138,13],[139,1,139,3],[139,4,139,6],[139,8,139,10],[139,11,139,13],[133,1,133,3],[133,4,133,6],[133,8,133,10],[133,11,133,13],[134,1,134,3],[134,4,134,6],[134,8,134,10],[134,11,134,13],[135,1,135,3],[135,4,135,6],[135,8,135,10],[135,11,135,13],[130,1,130,3],[130,4,130,6],[130,8,130,10],[130,11,130,13],[131,1,131,3],[131,4,131,6],[131,8,131,10],[131,11,131,13],[132,1,132,3],[132,4,132,6],[132,8,132,10],[132,11,132,13],[125,1,125,3],[125,4,125,6],[125,8,125,10],[125,11,125,13],[126,1,126,3],[126,4,126,6],[126,8,126,10],[126,11,126,13],[128,1,128,3],[128,4,128,6],[128,8,128,10],[128,11,128,13],[127,1,127,3],[127,4,127,6],[127,8,127,10],[127,11,127,13],[122,1,122,3],[122,4,122,6],[122,8,122,10],[122,11,122,13],[123,1,123,3],[123,4,123,6],[123,8,123,10],[123,11,123,13],[124,1,124,3],[124,4,124,6],[124,8,124,10],[124,11,124,13],[118,1,118,3],[118,4,118,6],[118,8,118,10],[118,11,118,13],[120,1,120,3],[120,4,120,6],[120,8,120,10],[120,11,120,13],[121,1,121,3],[121,4,121,6],[121,8,121,10],[121,11,121,13],[119,1,119,3],[119,4,119,6],[119,8,119,10],[119,11,119,13],[115,1,115,3],[115,4,115,6],[115,8,115,10],[115,11,115,13],[116,1,116,3],[116,4,116,6],[116,8,116,10],[116,11,116,13],[117,1,117,3],[117,4,117,6],[117,8,117,10],[117,11,117,13],[112,1,112,3],[112,4,112,6],[112,8,112,10],[112,11,112,13],[113,1,113,3],[113,4,113,6],[113,8,113,10],[113,11,113,13],[114,1,114,3],[114,4,114,6],[114,8,114,10],[114,11,114,13],[105,7,112,7],[108,1,108,3],[108,4,108,6],[108,8,108,10],[108,11,108,13],[109,1,109,3],[109,4,109,6],[109,8,109,10],[109,11,109,13],[110,1,110,3],[110,4,110,6],[110,8,110,10],[107,11,107,13],[101,1,101,3],[101,4,101,6],[101,8,101,10],[101,11,101,13],[102,1,102,3],[102,4,102,6],[102,8,102,10],[102,11,102,13],[104,1,104,3],[104,4,104,6],[104,8,104,10],[104,11,104,13],[98,1,98,3],[98,4,98,6],[98,8,98,10],[98,11,98,13],[99,1,99,3],[99,4,99,6],[99,8,99,10],[99,11,99,13],[100,1,100,3],[100,4,100,6],[100,8,100,10],[100,11,100,13],[94,1,94,3],[94,4,94,6],[94,8,94,10],[94,11,94,13],[96,1,96,3],[96,4,96,6],[96,8,96,10],[96,11,96,13],[97,1,97,3],[97,4,97,6],[97,8,97,10],[97,11,97,13],[91,1,91,3],[91,4,91,6],[91,8,91,10],[91,11,91,13],[92,1,92,3],[92,4,92,6],[92,8,92,10],[92,11,92,13],[93,1,93,3],[93,4,93,6],[93,8,93,10],[93,11,93,13],[89,8,89,10],[89,11,89,13],[90,1,90,3],[90,4,90,6],[90,8,90,10],[90,11,90,13],[5,1,5,3],[6,1,6,3],[7,1,7,3],[8,1,8,3],[9,1,9,3],[59,1,59,3],[59,4,59,6],[59,8,59,10],[59,11,59,13],[45,5,45,13],[12,4,12,6],[14,1,14,3],[14,4,14,6],[15,1,15,3],[15,4,15,6],[13,1,13,3],[6,4,6,6],[7,4,7,6],[8,4,8,6],[9,4,9,6],[10,4,10,6],[10,1,10,3],[12,1,12,3],[89,1,89,3],[89,4,89,6],[21,11,21,13],[22,8,22,10],[18,1,18,3],[18,4,18,6],[20,1,20,3],[20,4,20,6],[16,1,16,3],[16,4,16,6],[17,1,17,3],[17,4,17,6],[16,8,16,10],[21,1,21,3],[21,4,21,6],[22,1,22,3],[22,4,22,6],[21,8,21,10],[22,11,22,13],[34,1,34,3],[34,4,34,6],[34,8,34,10],[30,8,30,10],[30,11,30,13],[31,8,31,10],[31,11,31,13],[32,8,32,10],[32,11,32,13],[32,1,32,3],[32,4,32,6],[33,1,33,3],[33,4,33,6],[33,8,33,10],[33,11,33,13],[30,1,30,3],[30,4,30,6],[31,1,31,3],[31,4,31,6],[29,4,29,6],[12,8,12,10],[12,11,12,13],[10,11,10,13],[9,11,9,13],[8,11,8,13],[7,11,7,13],[20,11,20,13],[13,8,13,10],[13,11,13,13],[14,8,14,10],[14,11,14,13],[15,8,15,10],[15,11,15,13],[9,8,9,10],[10,8,10,10],[23,8,23,10],[23,11,23,13],[24,8,24,10],[24,11,24,13],[25,8,25,10],[25,11,25,13],[29,11,29,13],[28,8,28,10],[5,8,5,10],[6,8,6,10],[5,11,5,13],[6,11,6,13],[7,8,7,10],[8,8,8,10],[41,1,41,3],[41,4,41,6],[42,1,42,3],[42,4,42,6],[39,1,39,3],[39,4,39,6],[40,1,40,3],[40,4,40,6],[39,8,39,10],[39,11,39,13],[16,11,16,13],[17,8,17,10],[17,11,17,13],[18,8,18,10],[18,11,18,13],[20,8,20,10],[36,1,36,3],[36,4,36,6],[28,11,28,13],[29,8,29,10],[42,8,42,10],[42,11,42,13],[36,8,36,10],[36,11,36,13],[37,8,37,10],[37,11,37,13],[38,8,38,10],[38,11,38,13],[34,11,34,13],[37,1,37,3],[37,4,37,6],[38,1,38,3],[38,4,38,6],[51,8,51,10],[51,11,51,13],[49,1,49,3],[49,4,49,6],[49,8,49,10],[49,11,49,13],[55,8,55,10],[55,11,55,13],[56,8,56,10],[56,11,56,13],[52,1,52,3],[52,4,52,6],[52,8,52,10],[52,11,52,13],[54,1,54,3],[54,4,54,6],[54,8,54,10],[54,11,54,13],[60,8,60,10],[60,11,60,13],[62,1,62,3],[62,4,62,6],[62,8,62,10],[62,11,62,13],[57,1,57,3],[57,4,57,6],[57,8,57,10],[57,11,57,13],[58,1,58,3],[58,4,58,6],[58,8,58,10],[58,11,58,13],[61,8,61,10],[61,11,61,13],[65,1,65,3],[65,4,65,6],[65,8,65,10],[65,11,65,13],[66,1,66,3],[66,4,66,6],[66,8,66,10],[66,11,66,13],[63,1,63,3],[63,4,63,6],[63,8,63,10],[63,11,63,13],[64,1,64,3],[64,4,64,6],[64,8,64,10],[64,11,64,13],[70,1,70,3],[70,4,70,6],[70,8,70,10],[70,11,70,13],[71,1,71,3],[71,4,71,6],[71,8,71,10],[71,11,71,13],[67,1,67,3],[67,4,67,6],[67,8,67,10],[67,11,67,13],[68,1,68,3],[68,4,68,6],[68,8,68,10],[68,11,68,13],[69,1,69,3],[69,4,69,6],[69,8,69,10],[69,11,69,13],[74,1,74,3],[74,4,74,6],[74,8,74,10],[74,11,74,13],[75,1,75,3],[75,4,75,6],[75,8,75,10],[75,11,75,13],[72,1,72,3],[72,4,72,6],[72,8,72,10],[72,11,72,13],[73,1,73,3],[73,4,73,6],[73,8,73,10],[73,11,73,13],[79,8,79,10],[79,11,79,13],[80,1,80,3],[80,4,80,6],[80,8,80,10],[80,11,80,13],[76,1,76,3],[76,4,76,6],[76,8,76,10],[76,11,76,13],[78,1,78,3],[78,4,78,6],[78,8,78,10],[78,11,78,13],[77,1,77,3],[77,4,77,6],[77,8,77,10],[77,11,77,13],[13,0,20,0],[86,1,86,3],[86,4,86,6],[86,8,86,10],[86,11,86,13],[87,5,87,13],[83,1,83,3],[83,4,83,6],[83,8,83,10],[83,11,83,13],[84,1,84,3],[84,4,84,6],[84,8,84,10],[84,11,84,13],[81,1,81,3],[81,4,81,6],[81,8,81,10],[81,11,81,13],[82,1,82,3],[82,4,82,6],[82,8,82,10],[82,11,82,13],[79,1,79,3],[79,4,79,6]]}
["POMOZTE DĚTEM"]
["Organizační a odborné zajištění projektu"]
[]
["Tento list má 3 části - Zaměstnanci na HPP, DPP a DPČ a dobrovolníci. Proto rolujte až dolů!"]
["1. Zaměstnanci na hlavní pracovní poměr"]
[1,"Jméno a příjmení",null,null,null,null,null,2,"Jméno a příjmení"]
[null,"Pozice v projektovém týmu",null,null,null,null,null,null,"Pozice v projektovém týmu"]
[null,"Dosažené vzdělání",null,null,null,null,null,null,"Dosažené vzdělání"]
[null,"Obor",null,null,null,null,null,null,"Obor"]
[null,"Praxe",null,null,null,null,null,null,"Praxe"]
[null,"Pracovní náplň",null,null,null,null,null,null,"Pracovní náplň"]
[null,"Klíčová aktivita",null,null,null,null,null,null,"Klíčová aktivita"]
[null,"Doplnění",null,null,null,null,null,null,"Doplnění"]
[3,"Jméno a příjmení",null,null,null,null,null,4,"Jméno a příjmení"]
[null,"Pozice v projektovém týmu",null,null,null,null,null,null,"Pozice v projektovém týmu"]
[null,"Dosažené vzdělání",null,null,null,null,null,null,"Dosažené vzdělání"]
[null,"Obor",null,null,null,null,null,null,"Obor"]
[null,"Praxe",null,null,null,null,null,null,"Praxe"]
[null,"Pracovní náplň",null,null,null,null,null,null,"Pracovní náplň"]
[null,"Klíčová aktivita",null,null,null,null,null,null,"Klíčová aktivita"]
[null,"Doplnění",null,null,null,null,null,null,"Doplnění"]
[5,"Jméno a příjmení",null,null,null,null,null,6,"Jméno a příjmení"]
[null,"Pozice v projektovém týmu",null,null,null,null,null,null,"Pozice v projektovém týmu"]
[null,"Dosažené vzdělání",null,null,null,null,null,null,"Dosažené vzdělání"]
[null,"Obor",null,null,null,null,null,null,"Obor"]
[null,"Praxe",null,null,null,null,null,null,"Praxe"]
[null,"Pracovní náplň",null,null,null,null,null,null,"Pracovní náplň"]
[null,"Klíčová aktivita",null,null,null,null,null,null,"Klíčová aktivita"]
[null,"Doplnění",null,null,null,null,null,null,"Doplnění"]
[7,"Jméno a příjmení",null,null,null,null,null,8,"Jméno a příjmení"]
[null,"Pozice v projektovém týmu",null,null,null,null,null,null,"Pozice v projektovém týmu"]
[null,"Dosažené vzdělání",null,null,null,null,null,null,"Dosažené vzdělání"]
[null,"Obor",null,null,null,null,null,null,"Obor"]
[null,"Praxe",null,null,null,null,null,null,"Praxe"]
[null,"Pracovní náplň",null,null,null,null,null,null,"Pracovní náplň"]
[null,"Klíčová aktivita",null,null,null,null,null,null,"Klíčová aktivita"]
[null,"Doplnění",null,null,null,null,null,null,"Doplnění"]
[9,"Jméno a příjmení",null,null,null,null,null,10,"Jméno a příjmení"]
[null,"Pozice v projektovém týmu",null,null,null,null,null,null,"Pozice v projektovém týmu"]
[null,"Dosažené vzdělání",null,null,null,null,null,null,"Dosažené vzdělání"]
[null,"Obor",null,null,null,null,null,null,"Obor"]
[null,"Praxe",null,null,null,null,null,null,"Praxe"]
[null,"Pracovní náplň",null,null,null,null,null,null,"Pracovní náplň"]
[null,"Klíčová aktivita",null,null,null,null,null,null,"Klíčová aktivita"]
[null,"Doplnění",null,null,null,null,null,null,"Doplnění"]
[]
["2. Zaměstnanci na DPP a DPČ"]
[11,"Jméno a příjmení",null,null,null,null,null,12,"Jméno a příjmení",null,null,null,null,null,null,null,null,null,"ANO"]
[null,"Pozice v projektovém týmu",null,null,null,null,null,null,"Pozice v projektovém týmu",null,null,null,null,null,null,null,null,null,"NE"]
[null,"Dosažené vzdělání",null,null,null,null,null,null,"Dosažené vzdělání"]
[null,"Obor",null,null,null,null,null,null,"Obor"]
[null,"Praxe",null,null,null,null,null,null,"Praxe"]
[null,"Pracovní náplň",null,null,null,null,null,null,"Pracovní náplň"]
[null,"Klíčová aktivita",null,null,null,null,null,null,"Klíčová aktivita"]
[null,"Doplnění",null,null,null,null,null,null,"Doplnění"]
[13,"Jméno a příjmení",null,null,null,null,null,14,"Jméno a příjmení"]
[null,"Pozice v projektovém týmu",null,null,null,null,null,null,"Pozice v projektovém týmu"]
[null,"Dosažené vzdělání",null,null,null,null,null,null,"Dosažené vzdělání"]
[null,"Obor",null,null,null,null,null,null,"Obor"]
[null,"Praxe",null,null,null,null,null,null,"Praxe"]
[null,"Pracovní náplň",null,null,null,null,null,null,"Pracovní náplň"]
[null,"Klíčová aktivita",null,null,null,null,null,null,"Klíčová aktivita"]
[null,"Doplnění",null,null,null,null,null,null,"Doplnění"]
[15,"Jméno a příjmení",null,null,null,null,null,16,"Jméno a příjmení"]
[null,"Pozice v projektovém týmu",null,null,null,null,null,null,"Pozice v projektovém týmu"]
[null,"Dosažené vzdělání",null,null,null,null,null,null,"Dosažené vzdělání"]
[null,"Obor",null,null,null,null,null,null,"Obor"]
[null,"Praxe",null,null,null,null,null,null,"Praxe"]
[null,"Pracovní náplň",null,null,null,null,null,null,"Pracovní náplň"]
[null,"Klíčová aktivita",null,null,null,null,null,null,"Klíčová aktivita"]
[null,"Doplnění",null,null,null,null,null,null,"Doplnění"]
[17,"Jméno a příjmení",null,null,null,null,null,18,"Jméno a příjmení"]
[null,"Pozice v projektovém týmu",null,null,null,null,null,null,"Pozice v projektovém týmu"]
[null,"Dosažené vzdělání",null,null,null,null,null,null,"Dosažené vzdělání"]
[null,"Obor",null,null,null,null,null,null,"Obor"]
[null,"Praxe",null,null,null,null,null,null,"Praxe"]
[null,"Pracovní náplň",null,null,null,null,null,null,"Pracovní náplň"]
[null,"Klíčová aktivita",null,null,null,null,null,null,"Klíčová aktivita"]
[null,"Doplnění",null,null,null,null,null,null,"Doplnění"]
[19,"Jméno a příjmení",null,null,null,null,null,20,"Jméno a příjmení"]
[null,"Pozice v projektovém týmu",null,null,null,null,null,null,"Pozice v projektovém týmu"]
[null,"Dosažené vzdělání",null,null,null,null,null,null,"Dosažené vzdělání"]
[null,"Obor",null,null,null,null,null,null,"Obor"]
[null,"Praxe",null,null,null,null,null,null,"Praxe"]
[null,"Pracovní náplň",null,null,null,null,null,null,"Pracovní náplň"]
[null,"Klíčová aktivita",null,null,null,null,null,null,"Klíčová aktivita"]
[null,"Doplnění",null,null,null,null,null,null,"Doplnění"]
[]
["3. Dobrovolníci"]
[21,"Jméno a příjmení",null,null,null,null,null,22,"Jméno a příjmení"]
[null,"Pozice v projektovém týmu",null,null,null,null,null,null,"Pozice v projektovém týmu"]
[null,"Dosažené vzdělání",null,null,null,null,null,null,"Dosažené vzdělání"]
[null,"Obor",null,null,null,null,null,null,"Obor"]
[null,"Praxe",null,null,null,null,null,null,"Praxe"]
[null,"Pracovní náplň",null,null,null,null,null,null,"Pracovní náplň"]
[]
[null,"Doplnění",null,null,null,null,null,null,"Doplnění"]
[23,"Jméno a příjmení",null,null,null,null,null,24,"Jméno a příjmení"]
[null,"Pozice v projektovém týmu",null,null,null,null,null,null,"Pozice v projektovém týmu"]
[null,"Dosažené vzdělání",null,null,null,null,null,null,"Dosažené vzdělání"]
[null,"Obor",null,null,null,null,null,null,"Obor"]
[null,"Praxe",null,null,null,null,null,null,"Praxe"]
[null,"Pracovní náplň",null,null,null,null,null,null,"Pracovní náplň"]
[null,"Klíčová aktivita",null,null,null,null,null,null,"Klíčová aktivita"]
[null,"Doplnění",null,null,null,null,null,null,"Doplnění"]
[25,"Jméno a příjmení",null,null,null,null,null,26,"Jméno a příjmení"]
[null,"Pozice v projektovém týmu",null,null,null,null,null,null,"Pozice v projektovém týmu"]
[null,"Dosažené vzdělání",null,null,null,null,null,null,"Dosažené vzdělání"]
[null,"Obor",null,null,null,null,null,null,"Obor"]
[null,"Praxe",null,null,null,null,null,null,"Praxe"]
[null,"Pracovní náplň",null,null,null,null,null,null,"Pracovní náplň"]
[null,"Klíčová aktivita",null,null,null,null,null,null,"Klíčová aktivita"]
[null,"Doplnění",null,null,null,null,null,null,"Doplnění"]
[27,"Jméno a příjmení",null,null,null,null,null,28,"Jméno a příjmení"]
[null,"Pozice v projektovém týmu",null,null,null,null,null,null,"Pozice v projektovém týmu"]
[null,"Dosažené vzdělání",null,null,null,null,null,null,"Dosažené vzdělání"]
[null,"Obor",null,null,null,null,null,null,"Obor"]
[null,"Praxe",null,null,null,null,null,null,"Praxe"]
[null,"Pracovní náplň",null,null,null,null,null,null,"Pracovní náplň"]
[null,"Klíčová aktivita",null,null,null,null,null,null,"Klíčová aktivita"]
[null,"Doplnění",null,null,null,null,null,null,"Doplnění"]
[29,"Jméno a příjmení",null,null,null,null,null,30,"Jméno a příjmení"]
[null,"Pozice v projektovém týmu",null,null,null,null,null,null,"Pozice v projektovém týmu"]
[null,"Dosažené vzdělání",null,null,null,null,null,null,"Dosažené vzdělání"]
[null,"Obor",null,null,null,null,null,null,"Obor"]
[null,"Praxe",null,null,null,null,null,null,"Praxe"]
[null,"Pracovní náplň",null,null,null,null,null,null,"Pracovní náplň"]
[null,"Klíčová aktivita",null,null,null,null,null,null,"Klíčová aktivita"]
[null,"Doplnění",null,null,null,null,null,null,"Doplnění"]
["Dobrovolníci"]
[31,"Jméno a příjmení",null,null,null,null,null,32,"Jméno a příjmení"]
[null,"Pozice v projektovém týmu",null,null,null,null,null,null,"Pozice v projektovém týmu"]
[null,"Dosažené vzdělání",null,null,null,null,null,null,"Dosažené vzdělání"]
[null,"Obor",null,null,null,null,null,null,"Obor"]
[null,"Praxe",null,null,null,null,null,null,"Praxe"]
[null,"Pracovní náplň",null,null,null,null,null,null,"Pracovní náplň"]
[null,"Klíčová aktivita",null,null,null,null,null,null,"Klíčová aktivita"]
[null,"Doplnění",null,null,null,null,null,null,"Doplnění"]
[33,"Jméno a příjmení",null,null,null,null,null,34,"Jméno a příjmení"]
[null,"Pozice v projektovém týmu",null,null,null,null,null,null,"Pozice v projektovém týmu"]
[null,"Dosažené vzdělání",null,null,null,null,null,null,"Dosažené vzdělání"]
[null,"Obor",null,null,null,null,null,null,"Obor"]
[null,"Praxe",null,null,null,null,null,null,"Praxe"]
[null,"Pracovní náplň",null,null,null,null,null,null,"Pracovní náplň"]
[null,"Klíčová aktivita",null,null,null,null,null,null,"Klíčová aktivita"]
[null,"Doplnění",null,null,null,null,null,null,"Doplnění"]
[35,"Jméno a příjmení",null,null,null,null,null,36,"Jméno a příjmení"]
[null,"Pozice v projektovém týmu",null,null,null,null,null,null,"Pozice v projektovém týmu"]
[null,"Dosažené vzdělání",null,null,null,null,null,null,"Dosažené vzdělání"]
[null,"Obor",null,null,null,null,null,null,"Obor"]
[null,"Praxe",null,null,null,null,null,null,"Praxe"]
[null,"Pracovní náplň",null,null,null,null,null,null,"Pracovní náplň"]
[null,"Klíčová aktivita",null,null,null,null,null,null,"Klíčová aktivita"]
[null,"Doplnění",null,null,null,null,null,null,"Doplnění"]
[37,"Jméno a příjmení",null,null,null,null,null,38,"Jméno a příjmení"]
[39,"Pozice v projektovém týmu",null,null,null,null,null,null,"Pozice v projektovém týmu"]
[41,"Dosažené vzdělání",null,null,null,null,null,null,"Dosažené vzdělání"]
[null,"Obor",null,null,null,null,null,null,"Obor"]
[null,"Praxe",null,null,null,null,null,null,"Praxe"]
[null,"Pracovní náplň",null,null,null,null,null,null,"Pracovní náplň"]
[null,"Klíčová aktivita",null,null,null,null,null,null,"Klíčová aktivita"]
[null,"Doplnění",null,null,null,null,null,null,"Doplnění"]
[39,"Jméno a příjmení",null,null,null,null,null,40,"Jméno a příjmení"]
[null,"Pozice v projektovém týmu",null,null,null,null,null,null,"Pozice v projektovém týmu"]
[null,"Dosažené vzdělání",null,null,null,null,null,null,"Dosažené vzdělání"]
[null,"Obor",null,null,null,null,null,null,"Obor"]
[null,"Praxe",null,null,null,null,null,null,"Praxe"]
[null,"Pracovní náplň",null,null,null,null,null,null,"Pracovní náplň"]
[null,"Klíčová aktivita",null,null,null,null,null,null,"Klíčová aktivita"]
[null,"Doplnění",null,null,null,null,null,null,"Doplnění"]
[null,null,null,null,null,null,null,null,null,null,null,"kontrolní součet:",null,{"$f":"Checksum(E6:N170)","v":257923}]

{"sheet":"Rozp_Zam_Rocni","index":6,"n_rows":48,"n_cols":10,"rows_kept":48,"cut":false,"hidden":false,"merged":[[0,0,0,9],[3,3,3,9],[5,3,5,9],[4,3,4,9]]}
["POMOZTE DĚTEM"]
["Rozpočet - Zaměstnanci"]
[]
[]
[null,null,"Název projektu:"]
[null,null,"Název organizace:"]
[]
["Zaměstnanci na pracovní poměr:"]
["ID","Pozice v projektovém týmu","Jméno a příjmení","číslo pracovníka z listu \"Zaměstnanci\"","Měsíční hrubá mzda\npro plný úvazek","Měsíční superhrubá mzda\npro plný úvazek","Úvazek na projektu","Počet měsíců v projektu","Mzdové náklady vztahující se k projektu","Požadavek na financování z nadačního příspěvku"]
[1,null,null,null,null,{"$f":"E10*1.338","v":0},null,null,{"$f":"ROUND(F10*G10*H10,0)","v":0}]
[{"$f":"A10+1","v":2},null,null,null,null,{"$f":"E11*1.338","v":0},null,null,0]
[3,null,null,null,null,0,null,null,0]
[4,null,null,null,null,0,null,null,0]
[5,null,null,null,null,0,null,null,0]
[6,null,null,null,null,0,null,null,0]
[7,null,null,null,null,0,null,null,0]
[8,null,null,null,null,{"$f":"E17*1.338","v":0},null,null,0]
[9,null,null,null,null,0,null,null,0]
[{"$f":"A18+1","v":10},null,null,null,null,0,null,null,0]
[]
["Zaměstnanci na DPČ:"]
["ID","Pozice v projektovém týmu","Jméno a příjmení","číslo pracovníka z listu \"Zaměstnanci\"","Měsíční hrubá mzda\npro plný úvazek","Měsíční superhrubá mzda\npro plný úvazek","Úvazek na projektu","Počet měsíců v projektu","Mzdové náklady vztahující se k projektu","Požadavek na financování z nadačního příspěvku"]
[1,null,null,null,null,{"$f":"E23*1.338","v":0},null,null,{"$f":"ROUND(F23*G23*H23,0)","v":0}]
[{"$f":"A23+1","v":2},null,null,null,null,{"$f":"E24*1.338","v":0},null,null,0]
[3,null,null,null,null,0,null,null,0]
[4,null,null,null,null,0,null,null,0]
[5,null,null,null,null,0,null,null,0]
[{"$f":"A27+1","v":6},null,null,null,null,0,null,null,0]
[{"$f":"A28+1","v":7},null,null,null,null,0,null,null,0]
[{"$f":"A29+1","v":8},null,null,null,null,0,null,null,0]
[{"$f":"A30+1","v":9},null,null,null,null,0,null,null,0]
[{"$f":"A31+1","v":10},null,null,null,null,0,null,null,0]
[]
["Zaměstnanci na DPP:"]
["ID","Pozice v projektovém týmu","Jméno a příjmení","číslo pracovníka z listu \"Zaměstnanci\"","Hodinová sazba","Počet hodin v projektu","Případné odvody",null,"Mzdové náklady vztahující se k projektu","Požadavek na financování z nadačního příspěvku"]
[1,null,null,null,null,null,null,null,{"$f":"ROUND((E36*F36)+G36,0)","v":0}]
[{"$f":"A36+1","v":2},null,null,null,null,null,null,null,0]
[3,null,null,null,null,null,null,null,0]
[4,null,null,null,null,null,null,null,0]
[5,null,null,null,null,null,null,null,0]
[{"$f":"A40+1","v":6},null,null,null,null,null,null,null,0]
[{"$f":"A41+1","v":7},null,null,null,null,null,null,null,0]
[{"$f":"A42+1","v":8},null,null,null,null,null,null,null,0]
[{"$f":"A43+1","v":9},null,null,null,null,null,null,null,0]
[{"$f":"A44+1","v":10},null,null,null,null,null,null,null,0]
[]
[]
[null,null,null,null,null,null,"Kontrolní součet:"]

{"sheet":"Rozp_Strukt_Rocni","index":7,"n_rows":98,"n_cols":8,"rows_kept":98,"cut":false,"hidden":false,"merged":[[0,0,0,5],[3,2,3,5],[4,2,4,5],[5,2,5,5],[95,0,95,5]]}
["POMOZTE DĚTEM"]
["Rozpočet - Struktura"]
[]
[]
[null,"Název projektu:",{"$f":"Rozp_Zam_Rocni!$D$5","v":0}]
[null,"Název organizace:",{"$f":"Rozp_Zam_Rocni!$D$6","v":0}]
[]
["Číslo položky","PROJEKTOVÉ NÁKLADY","Výše projektových nákladů","Komentář","Aktivita","Požadavek na financování z nadačního příspěvku"]
["Kapitola 1. MZDOVÉ NÁKLADY"]
["1. 1.",{"$f":"Rozp_Zam_Rocni!B10 & \" (\" & Rozp_Zam_Rocni!C10 & \")\"","v":" ()"},{"$f":"Rozp_Zam_Rocni!I10","v":0},{"$f":" \"PP; úvazek: \" & Rozp_Zam_Rocni!G10 & \"; doba: \" & Rozp_Zam_Rocni!H10 & \" měs.\"","v":"PP; úvazek: ; doba:  měs."},null,{"$f":"Rozp_Zam_Rocni!J10","v":0},null,{"$f":"IF(F10>C10,\"Hodnota v sloupci E nesmí být vyšší než hodnota v sloupci C\",\"\")","v":""}]
["1. 2.",{"$f":"Rozp_Zam_Rocni!B11 & \" (\" & Rozp_Zam_Rocni!C11 & \")\"","v":" ()"},{"$f":"Rozp_Zam_Rocni!I11","v":0},{"$f":" \"PP; úvazek: \" & Rozp_Zam_Rocni!G11 & \"; doba: \" & Rozp_Zam_Rocni!H11 & \" měs.\"","v":"PP; úvazek: ; doba:  měs."},null,{"$f":"Rozp_Zam_Rocni!J11","v":0},null,{"$f":"IF(F11>C11,\"Hodnota v sloupci E nesmí být vyšší než hodnota v sloupci C\",\"\")","v":""}]
["1. 3.",{"$f":"Rozp_Zam_Rocni!B12 & \" (\" & Rozp_Zam_Rocni!C12 & \")\"","v":" ()"},{"$f":"Rozp_Zam_Rocni!I12","v":0},{"$f":" \"PP; úvazek: \" & Rozp_Zam_Rocni!G12 & \"; doba: \" & Rozp_Zam_Rocni!H12 & \" měs.\"","v":"PP; úvazek: ; doba:  měs."},null,{"$f":"Rozp_Zam_Rocni!J12","v":0},null,{"$f":"IF(F12>C12,\"Hodnota v sloupci E nesmí být vyšší než hodnota v sloupci C\",\"\")","v":""}]
["1. 4.",{"$f":"Rozp_Zam_Rocni!B13 & \" (\" & Rozp_Zam_Rocni!C13 & \")\"","v":" ()"},{"$f":"Rozp_Zam_Rocni!I13","v":0},{"$f":" \"PP; úvazek: \" & Rozp_Zam_Rocni!G13 & \"; doba: \" & Rozp_Zam_Rocni!H13 & \" měs.\"","v":"PP; úvazek: ; doba:  měs."},null,{"$f":"Rozp_Zam_Rocni!J13","v":0},null,{"$f":"IF(F13>C13,\"Hodnota v sloupci E nesmí být vyšší než hodnota v sloupci C\",\"\")","v":""}]
["1. 5.",{"$f":"Rozp_Zam_Rocni!B14 & \" (\" & Rozp_Zam_Rocni!C14 & \")\"","v":" ()"},{"$f":"Rozp_Zam_Rocni!I14","v":0},{"$f":" \"PP; úvazek: \" & Rozp_Zam_Rocni!G14 & \"; doba: \" & Rozp_Zam_Rocni!H14 & \" měs.\"","v":"PP; úvazek: ; doba:  měs."},null,{"$f":"Rozp_Zam_Rocni!J14","v":0},null,{"$f":"IF(F14>C14,\"Hodnota v sloupci E nesmí být vyšší než hodnota v sloupci C\",\"\")","v":""}]
["1. 6.",{"$f":"Rozp_Zam_Rocni!B15 & \" (\" & Rozp_Zam_Rocni!C15 & \")\"","v":" ()"},{"$f":"Rozp_Zam_Rocni!I15","v":0},{"$f":" \"PP; úvazek: \" & Rozp_Zam_Rocni!G15 & \"; doba: \" & Rozp_Zam_Rocni!H15 & \" měs.\"","v":"PP; úvazek: ; doba:  měs."},null,{"$f":"Rozp_Zam_Rocni!J15","v":0},null,{"$f":"IF(F15>C15,\"Hodnota v sloupci E nesmí být vyšší než hodnota v sloupci C\",\"\")","v":""}]
["1. 7.",{"$f":"Rozp_Zam_Rocni!B16 & \" (\" & Rozp_Zam_Rocni!C16 & \")\"","v":" ()"},{"$f":"Rozp_Zam_Rocni!I16","v":0},{"$f":" \"PP; úvazek: \" & Rozp_Zam_Rocni!G16 & \"; doba: \" & Rozp_Zam_Rocni!H16 & \" měs.\"","v":"PP; úvazek: ; doba:  měs."},null,{"$f":"Rozp_Zam_Rocni!J16","v":0},null,{"$f":"IF(F16>C16,\"Hodnota v sloupci E nesmí být vyšší než hodnota v sloupci C\",\"\")","v":""}]
["1. 8.",{"$f":"Rozp_Zam_Rocni!B17 & \" (\" & Rozp_Zam_Rocni!C17 & \")\"","v":" ()"},{"$f":"Rozp_Zam_Rocni!I17","v":0},{"$f":" \"PP; úvazek: \" & Rozp_Zam_Rocni!G17 & \"; doba: \" & Rozp_Zam_Rocni!H17 & \" měs.\"","v":"PP; úvazek: ; doba:  měs."},null,{"$f":"Rozp_Zam_Rocni!J17","v":0},null,{"$f":"IF(F17>C17,\"Hodnota v sloupci E nesmí být vyšší než hodnota v sloupci C\",\"\")","v":""}]
["1. 9.",{"$f":"Rozp_Zam_Rocni!B18 & \" (\" & Rozp_Zam_Rocni!C18 & \")\"","v":" ()"},{"$f":"Rozp_Zam_Rocni!I18","v":0},{"$f":" \"PP; úvazek: \" & Rozp_Zam_Rocni!G18 & \"; doba: \" & Rozp_Zam_Rocni!H18 & \" měs.\"","v":"PP; úvazek: ; doba:  měs."},null,{"$f":"Rozp_Zam_Rocni!J18","v":0},null,{"$f":"IF(F18>C18,\"Hodnota v sloupci E nesmí být vyšší než hodnota v sloupci C\",\"\")","v":""}]
["1. 10.",{"$f":"Rozp_Zam_Rocni!B19 & \" (\" & Rozp_Zam_Rocni!C19 & \")\"","v":" ()"},{"$f":"Rozp_Zam_Rocni!I19","v":0},{"$f":" \"PP; úvazek: \" & Rozp_Zam_Rocni!G19 & \"; doba: \" & Rozp_Zam_Rocni!H19 & \" měs.\"","v":"PP; úvazek: ; doba:  měs."},null,{"$f":"Rozp_Zam_Rocni!J19","v":0},null,{"$f":"IF(F19>C19,\"Hodnota v sloupci E nesmí být vyšší než hodnota v sloupci C\",\"\")","v":""}]
["1. 11.",{"$f":"Rozp_Zam_Rocni!B23 & \" (\" & Rozp_Zam_Rocni!C23 & \")\"","v":" ()"},{"$f":"Rozp_Zam_Rocni!I23","v":0},{"$f":" \"DPČ; úvazek: \" & Rozp_Zam_Rocni!G23 & \"; doba: \" & Rozp_Zam_Rocni!H23 & \" měs.\"","v":"DPČ; úvazek: ; doba:  měs."},null,{"$f":"Rozp_Zam_Rocni!J23","v":0},null,""]
["1. 12.",{"$f":"Rozp_Zam_Rocni!B24 & \" (\" & Rozp_Zam_Rocni!C24 & \")\"","v":" ()"},{"$f":"Rozp_Zam_Rocni!I24","v":0},{"$f":" \"DPČ; úvazek: \" & Rozp_Zam_Rocni!G24 & \"; doba: \" & Rozp_Zam_Rocni!H24 & \" měs.\"","v":"DPČ; úvazek: ; doba:  měs."},null,{"$f":"Rozp_Zam_Rocni!J24","v":0},null,""]
["1. 13.",{"$f":"Rozp_Zam_Rocni!B25 & \" (\" & Rozp_Zam_Rocni!C25 & \")\"","v":" ()"},{"$f":"Rozp_Zam_Rocni!I25","v":0},{"$f":" \"DPČ; úvazek: \" & Rozp_Zam_Rocni!G25 & \"; doba: \" & Rozp_Zam_Rocni!H25 & \" měs.\"","v":"DPČ; úvazek: ; doba:  měs."},null,{"$f":"Rozp_Zam_Rocni!J25","v":0},null,""]
["1. 14.",{"$f":"Rozp_Zam_Rocni!B26 & \" (\" & Rozp_Zam_Rocni!C26 & \")\"","v":" ()"},{"$f":"Rozp_Zam_Rocni!I26","v":0},{"$f":" \"DPČ; úvazek: \" & Rozp_Zam_Rocni!G26 & \"; doba: \" & Rozp_Zam_Rocni!H26 & \" měs.\"","v":"DPČ; úvazek: ; doba:  měs."},null,{"$f":"Rozp_Zam_Rocni!J26","v":0},null,""]
["1. 15.",{"$f":"Rozp_Zam_Rocni!B27 & \" (\" & Rozp_Zam_Rocni!C27 & \")\"","v":" ()"},{"$f":"Rozp_Zam_Rocni!I27","v":0},{"$f":" \"DPČ; úvazek: \" & Rozp_Zam_Rocni!G27 & \"; doba: \" & Rozp_Zam_Rocni!H27 & \" měs.\"","v":"DPČ; úvazek: ; doba:  měs."},null,{"$f":"Rozp_Zam_Rocni!J27","v":0},null,""]
["1. 16.",{"$f":"Rozp_Zam_Rocni!B28 & \" (\" & Rozp_Zam_Rocni!C28 & \")\"","v":" ()"},{"$f":"Rozp_Zam_Rocni!I28","v":0},{"$f":" \"DPČ; úvazek: \" & Rozp_Zam_Rocni!G28 & \"; doba: \" & Rozp_Zam_Rocni!H28 & \" měs.\"","v":"DPČ; úvazek: ; doba:  měs."},null,{"$f":"Rozp_Zam_Rocni!J28","v":0},null,{"$f":"IF(F25>C25,\"Hodnota v sloupci E nesmí být vyšší než hodnota v sloupci C\",\"\")","v":""}]
["1. 17.",{"$f":"Rozp_Zam_Rocni!B29 & \" (\" & Rozp_Zam_Rocni!C29 & \")\"","v":" ()"},{"$f":"Rozp_Zam_Rocni!I29","v":0},{"$f":" \"DPČ; úvazek: \" & Rozp_Zam_Rocni!G29 & \"; doba: \" & Rozp_Zam_Rocni!H29 & \" měs.\"","v":"DPČ; úvazek: ; doba:  měs."},null,{"$f":"Rozp_Zam_Rocni!J29","v":0},null,{"$f":"IF(F26>C26,\"Hodnota v sloupci E nesmí být vyšší než hodnota v sloupci C\",\"\")","v":""}]
["1. 18.",{"$f":"Rozp_Zam_Rocni!B30 & \" (\" & Rozp_Zam_Rocni!C30 & \")\"","v":" ()"},{"$f":"Rozp_Zam_Rocni!I30","v":0},{"$f":" \"DPČ; úvazek: \" & Rozp_Zam_Rocni!G30 & \"; doba: \" & Rozp_Zam_Rocni!H30 & \" měs.\"","v":"DPČ; úvazek: ; doba:  měs."},null,{"$f":"Rozp_Zam_Rocni!J30","v":0},null,{"$f":"IF(F27>C27,\"Hodnota v sloupci E nesmí být vyšší než hodnota v sloupci C\",\"\")","v":""}]
["1. 19.",{"$f":"Rozp_Zam_Rocni!B31 & \" (\" & Rozp_Zam_Rocni!C31 & \")\"","v":" ()"},{"$f":"Rozp_Zam_Rocni!I31","v":0},{"$f":" \"DPČ; úvazek: \" & Rozp_Zam_Rocni!G31 & \"; doba: \" & Rozp_Zam_Rocni!H31 & \" měs.\"","v":"DPČ; úvazek: ; doba:  měs."},null,{"$f":"Rozp_Zam_Rocni!J31","v":0},null,{"$f":"IF(F28>C28,\"Hodnota v sloupci E nesmí být vyšší než hodnota v sloupci C\",\"\")","v":""}]
["1. 20.",{"$f":"Rozp_Zam_Rocni!B32 & \" (\" & Rozp_Zam_Rocni!C32 & \")\"","v":" ()"},{"$f":"Rozp_Zam_Rocni!I32","v":0},{"$f":" \"DPČ; úvazek: \" & Rozp_Zam_Rocni!G32 & \"; doba: \" & Rozp_Zam_Rocni!H32 & \" měs.\"","v":"DPČ; úvazek: ; doba:  měs."},null,{"$f":"Rozp_Zam_Rocni!J32","v":0},null,{"$f":"IF(F29>C29,\"Hodnota v sloupci E nesmí být vyšší než hodnota v sloupci C\",\"\")","v":""}]
["1. 21.",{"$f":"Rozp_Zam_Rocni!B36 & \" (\" & Rozp_Zam_Rocni!C36 & \")\"","v":" ()"},{"$f":"Rozp_Zam_Rocni!I36","v":0},{"$f":" \"DPP; počet hodin: \" & Rozp_Zam_Rocni!F36","v":"DPP; počet hodin: "},null,{"$f":"Rozp_Zam_Rocni!J36","v":0},null,""]
["1. 22.",{"$f":"Rozp_Zam_Rocni!B37 & \" (\" & Rozp_Zam_Rocni!C37 & \")\"","v":" ()"},{"$f":"Rozp_Zam_Rocni!I37","v":0},{"$f":" \"DPP; počet hodin: \" & Rozp_Zam_Rocni!F37","v":"DPP; počet hodin: "},null,{"$f":"Rozp_Zam_Rocni!J37","v":0},null,""]
["1. 23.",{"$f":"Rozp_Zam_Rocni!B38 & \" (\" & Rozp_Zam_Rocni!C38 & \")\"","v":" ()"},{"$f":"Rozp_Zam_Rocni!I38","v":0},{"$f":" \"DPP; počet hodin: \" & Rozp_Zam_Rocni!F38","v":"DPP; počet hodin: "},null,{"$f":"Rozp_Zam_Rocni!J38","v":0},null,""]
["1. 24.",{"$f":"Rozp_Zam_Rocni!B39 & \" (\" & Rozp_Zam_Rocni!C39 & \")\"","v":" ()"},{"$f":"Rozp_Zam_Rocni!I39","v":0},{"$f":" \"DPP; počet hodin: \" & Rozp_Zam_Rocni!F39","v":"DPP; počet hodin: "},null,{"$f":"Rozp_Zam_Rocni!J39","v":0},null,""]
["1. 25.",{"$f":"Rozp_Zam_Rocni!B40 & \" (\" & Rozp_Zam_Rocni!C40 & \")\"","v":" ()"},{"$f":"Rozp_Zam_Rocni!I40","v":0},{"$f":" \"DPP; počet hodin: \" & Rozp_Zam_Rocni!F40","v":"DPP; počet hodin: "},null,{"$f":"Rozp_Zam_Rocni!J40","v":0},null,""]
["1. 26.",{"$f":"Rozp_Zam_Rocni!B41 & \" (\" & Rozp_Zam_Rocni!C41 & \")\"","v":" ()"},{"$f":"Rozp_Zam_Rocni!I41","v":0},{"$f":" \"DPP; počet hodin: \" & Rozp_Zam_Rocni!F41","v":"DPP; počet hodin: "},null,{"$f":"Rozp_Zam_Rocni!J41","v":0},null,{"$f":"IF(F35>C35,\"Hodnota v sloupci E nesmí být vyšší než hodnota v sloupci C\",\"\")","v":""}]
["1. 27.",{"$f":"Rozp_Zam_Rocni!B42 & \" (\" & Rozp_Zam_Rocni!C42 & \")\"","v":" ()"},{"$f":"Rozp_Zam_Rocni!I42","v":0},{"$f":" \"DPP; počet hodin: \" & Rozp_Zam_Rocni!F42","v":"DPP; počet hodin: "},null,{"$f":"Rozp_Zam_Rocni!J42","v":0},null,{"$f":"IF(F36>C36,\"Hodnota v sloupci E nesmí být vyšší než hodnota v sloupci C\",\"\")","v":""}]
["1. 28.",{"$f":"Rozp_Zam_Rocni!B43 & \" (\" & Rozp_Zam_Rocni!C43 & \")\"","v":" ()"},{"$f":"Rozp_Zam_Rocni!I43","v":0},{"$f":" \"DPP; počet hodin: \" & Rozp_Zam_Rocni!F43","v":"DPP; počet hodin: "},null,{"$f":"Rozp_Zam_Rocni!J43","v":0},null,{"$f":"IF(F37>C37,\"Hodnota v sloupci E nesmí být vyšší než hodnota v sloupci C\",\"\")","v":""}]
["1. 29.",{"$f":"Rozp_Zam_Rocni!B44 & \" (\" & Rozp_Zam_Rocni!C44 & \")\"","v":" ()"},{"$f":"Rozp_Zam_Rocni!I44","v":0},{"$f":" \"DPP; počet hodin: \" & Rozp_Zam_Rocni!F44","v":"DPP; počet hodin: "},null,{"$f":"Rozp_Zam_Rocni!J44","v":0},null,{"$f":"IF(F38>C38,\"Hodnota v sloupci E nesmí být vyšší než hodnota v sloupci C\",\"\")","v":""}]
["1. 30.",{"$f":"Rozp_Zam_Rocni!B45 & \" (\" & Rozp_Zam_Rocni!C45 & \")\"","v":" ()"},{"$f":"Rozp_Zam_Rocni!I45","v":0},{"$f":" \"DPP; počet hodin: \" & Rozp_Zam_Rocni!F45","v":"DPP; počet hodin: "},null,{"$f":"Rozp_Zam_Rocni!J45","v":0},null,{"$f":"IF(F39>C39,\"Hodnota v sloupci E nesmí být vyšší než hodnota v sloupci C\",\"\")","v":""}]
["1. 31."]
[null,"Součet Kapitola 1.",{"$f":"SUM(C10:C40)","v":0},null,null,{"$f":"SUM(F10:F40)","v":0}]
[]
["Kapitola 2. SPOTŘEBNÍ MATERIÁL - POMŮCKY "]
["2.1.",null,null,null,null,null,null,{"$f":"IF(F44>C44,\"Hodnota v sloupci E nesmí být vyšší než hodnota v sloupci C\",\"\")","v":""}]
["2.2."]
["2.3."]
["2.4."]
["2.5."]
["2.6."]
[]
[null,"Součet Kapitola 2.",{"$f":"SUM(C44:C50)","v":0},null,null,{"$f":"SUM(F44:F50)","v":0}]
[]
["Kapitola 3. CESTOVNÉ - ZAMĚSTNANCI"]
["3.1.",null,null,null,null,null,null,{"$f":"IF(F54>C54,\"Hodnota v sloupci E nesmí být vyšší než hodnota v sloupci C\",\"\")","v":""}]
["3.2."]
["3.3."]
["3.4."]
["3.5."]
["3.6."]
[]
[null,"Součet Kapitola 3.",{"$f":"SUM(C54:C60)","v":0},null,null,{"$f":"SUM(F54:F60)","v":0}]
[]
["Kapitola 4. SLUŽBY PRO CÍLOVÉ SKUPINY - VZDĚLÁVÁNÍ"]
["4.1.",null,null,null,null,null,null,{"$f":"IF(F64>C64,\"Hodnota v sloupci E nesmí být vyšší než hodnota v sloupci C\",\"\")","v":""}]
["4.2."]
["4.3."]
["4.4."]
["4.5."]
["4.6."]
[]
[null,"Součet Kapitola 4.",{"$f":"SUM(C64:C70)","v":0},null,null,{"$f":"SUM(F64:F70)","v":0}]
[]
["Kapitola 5. OSTATNÍ SLUŽBY"]
["5.1.",null,null,null,null,null,null,{"$f":"IF(F74>C74,\"Hodnota v sloupci E nesmí být vyšší než hodnota v sloupci C\",\"\")","v":""}]
["5.2."]
["5.3."]
["5.4."]
["5.5."]
["5.6."]
[]
[null,"Součet Kapitola 5.",{"$f":"SUM(C74:C80)","v":0},null,null,{"$f":"SUM(F74:F80)","v":0}]
[]
["Kapitola 6. INVESTIČNÍ NÁKLADY - pořízení nebo zhodnocení dlouhodobého majetku"]
["6.1.",null,null,null,null,null,null,{"$f":"IF(F84>C84,\"Hodnota v sloupci E nesmí být vyšší než hodnota v sloupci C\",\"\")","v":""}]
["6.2."]
["6.3."]
["6.4."]
["6.5."]
["6.6."]
[]
[null,"Součet Kapitola 6.",{"$f":"SUM(C84:C90)","v":0},null,null,{"$f":"SUM(F84:F90)","v":0}]
[]
[null,"Mezisoučet - Přímé projektové náklady",{"$f":"C41+C51+C61+C71+C81+C91","v":0},null,null,{"$f":"F41+F51+F61+F71+F81+F91","v":0}]
[]
["Kapitola 7. NEPŘÍMÉ PROJEKTOVÉ NÁKLADY",null,{"$f":"C93*0.1","v":0},null,null,{"$f":"F93*0.1","v":0},null,{"$f":"IF(F95>C95,\"Hodnota v sloupci E nesmí být vyšší než hodnota v sloupci C\",\"\")","v":""}]
[]
[]
["CELKOVÉ PROJEKTOVÉ NÁKLADY",null,{"$f":"ROUND(C93+C95,0)","v":0},null,null,{"$f":"ROUND(F93+F95,0)","v":0}]

{"sheet":"Rozp_Zdroj_Rocni","index":8,"n_rows":31,"n_cols":9,"rows_kept":31,"cut":false,"hidden":false,"merged":[[28,0,28,4],[29,0,29,4],[30,0,30,4],[0,0,0,4],[3,1,3,4],[4,1,4,4],[5,1,5,4]]}
["POMOZTE DĚTEM"]
["Rozpočet - Zdroje"]
[]
[]
["Název projektu:",{"$f":"Rozp_Zam_Rocni!D5","v":0}]
["Název organizace:",{"$f":"Rozp_Zam_Rocni!D6","v":0}]
[]
["                                                ZDROJE FINANCOVÁNÍ PROJEKTOVÝCH NÁKLADŮ",null,null,"Suma","%"]
["Nadační příspěvek NROS - Pomozte dětem",null,null,{"$f":"Rozp_Strukt_Rocni!F98","v":0},{"$f":"IF($D$24=0, ,D9/$D$24)","v":0},null,null,null,"A"]
["Jiné příspěvky od donátorů",null,null,{"$f":"SUM(D12:D21)","v":0},{"$f":"IF($D$24=0, ,D10/$D$24)","v":0},null,null,null,"B"]
["Poskytovatel","Typ příspěvku","Stav žádosti",null,null,null,null,null,"C"]
[]
[]
[]
[]
[]
[]
[]
[]
[]
[]
["Vlastní prostředky žadatele",null,null,0,{"$f":"IF($D$24=0, ,D22/$D$24)","v":0}]
["Přímé výnosy projektu",null,null,null,{"$f":"IF($D$24=0, ,D23/$D$24)","v":0}]
["CELKOVÉ ZDROJE",null,null,{"$f":"D9+D10+D22+D23","v":0}]
[]
[]
[]
["Stav žádosti\nzvolte jednu z možností (A, B nebo C):"]
["A - žádost byla schválená (použijte v případě, že donátor již danou žádost schválil)"]
["B - žádost byla podána (použijte v případě, že danou žádost jste již podali, ale výsledek vám dosud není znám)\n"]
["C - žádost bude podána (použijte v případě, že danou žádost plánujete podat v čase relevantním k období realizace projektu)"]

{"sheet":"Kontrola_Rocni","index":9,"n_rows":29,"n_cols":2,"rows_kept":29,"cut":false,"hidden":false,"merged":[[0,0,0,1],[1,0,1,1],[16,2,17,3]]}
["POMOZTE DĚTEM"]
["KONTROLA  ROZPOČTU"]
[]
[]
[]
["1.","Výše požadavku na financování nepřímých projektových nákladů odpovídá stanoveným limitům"]
[null,{"$f":"IF(Rozp_Strukt_Rocni!F95>(0.1*Rozp_Strukt_Rocni!F93),\"NESOULAD\",\"OK\")","v":"OK"}]
[null,{"$f":"IF(Rozp_Strukt_Rocni!F95>(0.1*Rozp_Strukt_Rocni!F93),\"Výše požadavku překračuje limit 10% z částky požadované na financování přímých projektových nákladů. Snižte částku požadavku na financování z NP u Kapitoly 7 v sloupci E listu Rozpočet_Struktura.\",\"\")","v":""}]
[]
["2.","Výše požadovaného nadačního příspěvku odpovídá stanoveným limitům"]
[{"$f":"A10+1","v":{"$error":"#VALUE!"}}]
[null,{"$f":"IF(Rozp_Zdroj_Rocni!D9>880000,\"NESOULAD\",\"OK\")","v":"OK"}]
[null,{"$f":"IF(Rozp_Zdroj_Rocni!D9>880000,\"Výše NP přesahuje limit 880.000 Kč. Snižte částku požadavku na financování z NP u vhodných položek v sloupci E listu Rozpočet_Struktura.\",\"\")","v":""}]
[]
[]
[{"$f":"A15+1","v":1}]
["3.","Suma Celkových projektových nákladů odpovídá sumě Celkových zdrojů"]
[null,{"$f":"IF(Rozp_Strukt_Rocni!C98=Rozp_Zdroj_Rocni!D24,\"OK\",\"NESOULAD\")","v":"OK"}]
[null,{"$f":"IF(Rozp_Strukt_Rocni!C98=Rozp_Zdroj_Rocni!D24,\"\",\"Suma projektových nákladů se neshoduje se sumou zdrojů. Upravte výši zdrojů spolufinancování v sloupci D listu Rozpočet_Zdroje anebo zvažte nastavení aktivit s dopadem na výši projektových nákladů v sloupci C listu Rozpočet_Struktura.\")","v":""}]
[]
["4.","Součet kapitol 2 a 3"]
[null,{"$f":"IF(Kontrola_Rocni!B24>50000,\"NESOULAD\",\"OK\")","v":"OK"}]
[null,{"$f":"IF(Kontrola_Rocni!B24>50000,\"Výše požadavku překračuje limit 50 000 Kč z částky určené na financování pomůcek a cestovného. Snižte částku požadavku na financování cestovného / pomůcek u Kapitoly 3 / 2 v sloupci F listu Rozpočet_Struktura.\",\"\")","v":""}]
[null,{"$f":"Rozp_Strukt_Rocni!F51+Rozp_Strukt_Rocni!F61","v":0}]
[]
["5. ","Kontrola výše samofinancování (Maximální výše 30%)"]
[null,{"$f":"Rozp_Zdroj_Rocni!E10+Rozp_Zdroj_Rocni!E22","v":0}]
[null,{"$f":"IF(Kontrola_Rocni!B27>30%,\"Výše požadavku překračuje limit 30 % spoluúčasti na financování projektu. Snižte výši nákladů na projekt a poté i výši spoluúčasti.\",\"\")","v":""}]
[null,{"$f":"IF(Kontrola_Rocni!B27>30%,\"NESOULAD\",\"OK\")","v":"OK"}]

{"sheet":"DATA","index":10,"n_rows":2,"n_cols":66,"rows_kept":2,"cut":false,"hidden":true,"merged":[]}
["Org_name","Org_type","Org_IC","Org_Bank","Org_register_date","Org_statutar","Org_Report","Org_activity_a","Org_activity_b","Org_activity_c","Org_activity_d","Org_acredit_activity_a","Org_acredit_activity_b","Org_acredit_activity_c","Org_acredit_activity_d","Org_social_protection","Org_asociation","Org_adr_street","Org_adr_house_number","Org_adr_PSC","Org_adr_city","Org_post_adr_street","Org_post_adr_house_number","Org_post_adr_PSC","Org_post_adr_city","Org_WWW","Org_employes","Ogr_voluntaries","Org_accounting","Typ","Rocni_name","Rocni_ID","Rocni_Total","Rocni_Requested","Rocni_Kontakt_name","Rocni_Kontakt_tel","Rocni_Kontakt_mail","Rocni_nuts","Rocni_obec","Rocni_doba","Rocni_oblast","Rocni_deti","Tem_name","Tem_ID","Tem_Total","Tem_Requested","Tem_Kontakt_name","Tem_Kontakt_tel","Tem_Kontakt_mail","Tem_nuts","Tem_obec","Tem_doba","Tem_oblast","Tem_deti","Ind_name","Ind_ID","Ind_Total","Ind_Requested","Ind_Kontakt_name","Ind_Kontakt_tel","Ind_Kontakt_mail","Ind_nuts","Ind_obec","Ind_doba","Ind_oblast","Ind_deti"]
[{"$f":"Zadatel!E6","v":0},{"$f":"Zadatel!E7","v":0},{"$f":"Zadatel!E8","v":0},null,{"$f":"Zadatel!E10","v":"00:00:00"},{"$f":"Zadatel!E12","v":0},{"$f":"Zadatel!E14","v":0},{"$f":"Zadatel!E17","v":0},{"$f":"Zadatel!E18","v":0},{"$f":"Zadatel!E19","v":0},{"$f":"Zadatel!E20","v":0},{"$f":"Zadatel!E22","v":0},{"$f":"Zadatel!E23","v":0},{"$f":"Zadatel!E24","v":0},{"$f":"Zadatel!E25","v":0},{"$f":"Zadatel!E28","v":0},null,{"$f":"Zadatel!E31","v":0},{"$f":"Zadatel!E32","v":0},{"$f":"Zadatel!E33","v":0},{"$f":"Zadatel!E34","v":0},{"$f":"Zadatel!E36","v":0},{"$f":"Zadatel!E37","v":0},{"$f":"Zadatel!E38","v":0},{"$f":"Zadatel!E39","v":0},{"$f":"Zadatel!E13","v":0},{"$f":"Zadatel!E45+Zadatel!H45+Zadatel!K45","v":0},{"$f":"Zadatel!E46","v":0},null,null,{"$f":"Rocni!B5","v":0},{"$f":"Rocni!B7","v":0},{"$f":"Rocni!E24","v":0},{"$f":"Rocni!E25","v":0},{"$f":"Rocni!E15","v":0},{"$f":"Rocni!E17","v":0},{"$f":"Rocni!E18","v":0},{"$f":"Rocni!E20","v":0},{"$f":"Rocni!E21","v":0},{"$f":"Rocni!E30","v":0},{"$f":"Rocni!E33","v":0},{"$f":"Rocni!I28","v":0},{"$f":"Rocni!B36","v":0},{"$f":"Zadatel!E61","v":0},{"$f":"Zadatel!K61","v":0},{"$f":"Zadatel!L62","v":0}]